bitfinex/quotes_BTCUSD_20260308
["timestamp","ask_amount","ask_price","bid_price","bid_amount"]
[1772972371916,0.07448234,67132.0,67115.0,0.05923729]
[1772972372122,0.07448234,67132.0,67116.0,0.05923729]
[1772972372312,0.07448234,67132.0,67119.0,0.01836186]
[1772972372560,0.07448234,67132.0,67121.0,0.01836186]
[1772972372922,0.07448234,67132.0,67120.0,0.00152]
[1772972374044,0.07448234,67132.0,67121.0,0.01871444]
[1772972374250,0.07447968,67133.0,67122.0,0.07449122]
[1772972375838,0.05852347,67132.0,67122.0,0.07449122]
[1772972376443,0.07448123,67131.0,67122.0,0.07449122]
[1772972376646,0.07448123,67132.0,67123.0,0.01871444]
[1772972376848,0.07447883,67134.0,67125.0,0.01871444]
[1772972377047,0.07447175,67140.0,67126.0,0.02023444]
[1772972377048,0.00152,67139.0,67126.0,0.02023444]
[1772972377435,0.07447206,67140.0,67126.0,0.02023444]
[1772972377436,0.07599206,67140.0,67129.0,0.01871444]
[1772972377639,0.07447206,67140.0,67129.0,0.01871444]
[1772972378062,0.32447125,67141.0,67130.0,0.01871444]
[1772972378259,0.32447125,67141.0,67126.0,0.00152]
[1772972378260,0.32447125,67141.0,67132.0,0.01871444]
[1772972378465,0.32447125,67141.0,67132.0,0.02023444]
[1772972378739,0.00152,67145.0,67133.0,0.07447901]
[1772972378740,0.07446601,67145.0,67133.0,0.07447901]
[1772972378893,0.07446216,67149.0,67134.0,0.01871444]
[1772972379247,0.07486047,67150.0,67137.0,0.05823412]
[1772972379460,0.00011928,67150.0,67139.0,0.01871444]
[1772972379605,0.00011928,67150.0,67140.0,0.05823412]
[1772972380489,0.07445115,67159.0,67141.0,0.07447014]
[1772972380652,0.07445115,67159.0,67142.0,0.05823412]
[1772972380995,0.07445115,67159.0,67144.0,0.05823412]
[1772972381200,0.07445115,67159.0,67145.0,0.00152]
[1772972381610,0.01920846,67156.0,67141.0,0.00011928]
[1772972381818,0.01920846,67152.0,67141.0,0.00011928]
[1772972383420,0.00012,67152.0,67141.0,0.00011928]
[1772972383614,0.00012,67152.0,67142.0,0.05823412]
[1772972383816,0.00012,67152.0,67141.0,0.00011928]
[1772972384038,0.06052252,67151.0,67142.0,0.00152]
[1772972384215,0.01920846,67150.0,67141.0,0.00011928]
[1772972384636,0.01942847,67150.0,67141.0,0.00011928]
[1772972385455,0.01920846,67146.0,67129.0,0.07448345]
[1772972385656,0.01920846,67145.0,67130.0,0.00152]
[1772972386037,0.01920846,67145.0,67130.0,0.05975412]
[1772972387246,0.00011928,67146.0,67130.0,0.05975412]
[1772972387429,0.00011928,67146.0,67132.0,0.05823412]
[1772972388948,0.07446292,67148.0,67132.0,0.05823412]
[1772972388949,0.00022001,67150.0,67132.0,0.05823412]
[1772972389153,0.00022001,67150.0,67136.0,0.05823412]
[1772972389492,0.07468102,67150.0,67138.0,0.07447347]
[1772972390048,0.07468102,67150.0,67138.0,0.13270759]
[1772972390252,0.07468045,67150.0,67138.0,0.13270759]
[1772972391396,0.07468041,67150.0,67138.0,0.13270759]
[1772972391632,0.00022001,67150.0,67138.0,0.07447347]
[1772972391781,0.00022001,67150.0,67139.0,0.05823412]
[1772972393483,0.01920846,67156.0,67140.0,0.07447125]
[1772972393725,0.01920846,67154.0,67140.0,0.07447125]
[1772972393905,0.00022001,67150.0,67141.0,0.05823412]
[1772972396402,0.00022001,67150.0,67142.0,0.13270315]
[1772972396601,0.07973098,67156.0,67143.0,0.00152]
[1772972396801,0.01920846,67155.0,67142.0,0.07446903]
[1772972397004,0.01920846,67153.0,67143.0,0.00152]
[1772972397783,0.07445257,67157.0,67143.0,0.00152]
[1772972397937,0.01920846,67154.0,67143.0,0.00152]
[1772972398136,0.01920846,67152.0,67143.0,0.00152]
[1772972398336,0.07445461,67155.0,67144.0,0.07446681]
[1772972398644,0.06052252,67151.0,67144.0,0.05446681]
[1772972398942,0.06052252,67151.0,67144.0,0.03446681]
[1772972400548,0.06052252,67151.0,67138.0,0.07447322]
[1772972400549,0.06052252,67149.0,67137.0,0.07447458]
[1772972400888,0.06052252,67147.0,67139.0,0.00152]
[1772972402536,0.07446459,67146.0,67140.0,0.07447125]
[1772972403770,0.00022001,67151.0,67140.0,0.07447125]
[1772972404120,0.00152,67154.0,67140.0,0.07447125]
[1772972404121,0.07597582,67154.0,67142.0,0.05823412]
[1772972404615,0.07445452,67156.0,67143.0,0.07446792]
[1772972404616,0.07597452,67156.0,67143.0,0.07446792]
[1772972404891,0.13652787,67156.0,67143.0,0.07446792]
[1772972405047,0.13804787,67156.0,67144.0,0.06058535]
[1772972405249,0.07597452,67156.0,67143.0,0.07446792]
[1772972405482,0.06207335,67155.0,67143.0,0.07446792]
[1772972406468,0.0744524,67157.0,67144.0,0.06058535]
[1772972406694,0.0744524,67157.0,67145.0,0.0759857]
[1772972406935,0.08019954,67160.0,67146.0,0.07866407]
[1772972407075,0.08019954,67160.0,67146.0,0.06058535]
[1772972407275,0.00575,67160.0,67149.0,0.01807872]
[1772972407476,0.00575,67160.0,67145.0,0.0759857]
[1772972407477,0.00575,67160.0,67150.0,0.06058535]
[1772972407683,0.00575,67160.0,67151.0,0.00152]
[1772972408649,1e-08,67174.0,67154.0,0.05880384]
[1772972408792,1e-08,67174.0,67158.0,0.05880384]
[1772972408994,1e-08,67174.0,67161.0,0.01807872]
[1772972409195,1e-08,67174.0,67165.0,0.01807872]
[1772972409393,1e-08,67174.0,67167.0,0.07688256]
[1772972409575,1e-08,67174.0,67167.0,0.07840256]
[1772972409775,0.00011936,67174.0,67167.0,0.07840256]
[1772972410122,0.0004,67175.0,67168.0,0.07688256]
[1772972410336,0.0004,67175.0,67167.0,0.00152]
[1772972410480,0.0004,67175.0,67167.0,0.00163935]
[1772972410688,0.0004,67175.0,67168.0,0.15132276]
[1772972411120,0.000326,67183.0,67170.0,0.01807872]
[1772972411430,0.07626975,67183.0,67168.0,0.0744402]
[1772972411630,0.05995268,67182.0,67169.0,0.00152]
[1772972413018,0.00152,67181.0,67171.0,0.07688256]
[1772972413254,0.00152,67181.0,67171.0,0.05880384]
[1772972413458,0.000326,67183.0,67171.0,0.01807872]
[1772972413589,0.000326,67183.0,67172.0,0.01807872]
[1772972413788,0.000326,67183.0,67170.0,0.07443799]
[1772972413789,0.000326,67183.0,67174.0,0.07688256]
[1772972414099,0.000326,67183.0,67175.0,0.05880384]
[1772972414299,0.000326,67183.0,67171.0,0.05880384]
[1772972414642,0.000326,67183.0,67173.0,0.05880384]
[1772972414848,0.000326,67183.0,67174.0,0.07688256]
[1772972415010,0.000326,67183.0,67175.0,0.07595245]
[1772972415429,0.00575,67187.0,67178.0,0.05880384]
[1772972416034,0.00575,67187.0,67175.0,0.07595245]
[1772972416035,1e-08,67187.0,67179.0,0.01807872]
[1772972416233,1e-08,67187.0,67175.0,0.07595245]
[1772972416452,0.0744083,67197.0,67175.0,0.07595245]
[1772972416453,0.07440623,67199.0,67175.0,0.07443245]
[1772972416660,0.00152,67198.0,67176.0,0.00152]
[1772972416969,0.13555854,67200.0,67177.0,0.07443023]
[1772972416970,0.07560531,67200.0,67177.0,0.07443023]
[1772972417157,0.07560531,67200.0,67180.0,0.01807872]
[1772972417330,0.07560531,67200.0,67183.0,0.05880384]
[1772972417532,0.0012,67200.0,67186.0,0.01807872]
[1772972417717,0.07560489,67200.0,67189.0,0.05880384]
[1772972417940,0.07560489,67200.0,67190.0,0.00152]
[1772972418166,0.07560489,67200.0,67191.0,0.01807872]
[1772972418403,0.07560495,67200.0,67191.0,0.01807872]
[1772972418693,0.07439568,67209.0,67190.0,0.06032384]
[1772972418694,0.005,67210.0,67194.0,0.01807872]
[1772972418841,0.07439479,67209.0,67190.0,0.00152]
[1772972419040,0.07439479,67209.0,67192.0,0.01807872]
[1772972419247,0.13974538,67210.0,67184.0,0.07442248]
[1772972419248,0.00539791,67210.0,67194.0,0.01807872]
[1772972419505,0.00539791,67210.0,67184.0,0.07442248]
[1772972419506,0.00539791,67210.0,67196.0,0.05880384]
[1772972419655,0.00539791,67210.0,67198.0,0.05880384]
[1772972420060,0.00539791,67210.0,67199.0,0.01807872]
[1772972420272,0.00539791,67210.0,67200.0,0.05880384]
[1772972420597,0.07979177,67210.0,67197.0,0.00152]
[1772972420801,0.07979177,67210.0,67191.0,0.01807872]
[1772972421104,0.07797205,67209.0,67193.0,0.07441251]
[1772972421304,0.07797205,67209.0,67193.0,0.13321635]
[1772972421470,0.01801937,67209.0,67193.0,0.13321635]
[1772972421668,0.07797205,67209.0,67193.0,0.13321635]
[1772972421871,0.07797205,67209.0,67194.0,0.05880384]
[1772972422408,0.07979177,67210.0,67194.0,0.05880384]
[1772972422610,0.07979177,67210.0,67193.0,0.07441251]
[1772972422828,0.07979177,67210.0,67195.0,0.00152]
[1772972422829,0.01801937,67208.0,67195.0,0.00152]
[1772972423012,0.07439809,67207.0,67196.0,0.07440919]
[1772972423226,0.00539791,67210.0,67196.0,0.07440919]
[1772972423376,0.00575,67214.0,67201.0,0.05880384]
[1772972423569,0.00586927,67214.0,67203.0,0.05880384]
[1772972424073,0.00467529,67214.0,67204.0,0.05880384]
[1772972425095,0.00467529,67214.0,67205.0,0.07439922]
[1772972425417,0.00467529,67214.0,67205.0,0.13320306]
[1772972425841,0.00467529,67214.0,67206.0,0.05880384]
[1772972426018,0.13664588,67225.0,67206.0,0.05880384]
[1772972426227,0.13664588,67225.0,67207.0,0.01807872]
[1772972426228,0.13512588,67225.0,67207.0,0.01807872]
[1772972426427,0.0751732,67225.0,67208.0,0.06032384]
[1772972426953,0.0751732,67225.0,67208.0,0.01959872]
[1772972427161,0.07797205,67230.0,67212.0,0.05880384]
[1772972427360,0.28924715,67267.0,67212.0,0.05880384]
[1772972427361,1e-08,67241.0,67212.0,0.05880384]
[1772972427655,1e-08,67241.0,67217.0,0.01807872]
[1772972427858,1e-08,67241.0,67221.0,0.01807872]
[1772972428084,0.0002446,67256.0,67222.0,0.00152]
[1772972428210,0.0002446,67256.0,67229.0,0.01807872]
[1772972428407,0.0002446,67256.0,67225.0,0.0004]
[1772972428408,0.0002446,67256.0,67232.0,0.05880384]
[1772972428638,0.0002446,67256.0,67236.0,0.05880384]
[1772972428834,0.01801937,67265.0,67225.0,0.0004]
[1772972428835,0.00641806,67273.0,67241.0,0.00575]
[1772972429035,0.07432134,67276.0,67243.0,0.01807872]
[1772972429258,0.07472226,67275.0,67244.0,0.05880384]
[1772972429592,0.07472226,67275.0,67243.0,0.07435718]
[1772972429593,0.05995268,67273.0,67248.0,0.07688256]
[1772972429727,0.07484191,67275.0,67248.0,0.07688256]
[1772972429728,0.01801937,67270.0,67248.0,0.07688256]
[1772972429931,0.05995268,67270.0,67244.0,0.07688256]
[1772972430254,0.09438128,67275.0,67249.0,0.00152]
[1772972430570,0.09438128,67275.0,67244.0,0.001]
[1772972430571,0.07636191,67275.0,67244.0,0.001]
[1772972430749,0.01801937,67270.0,67245.0,0.00152]
[1772972430949,0.05995268,67267.0,67245.0,0.00152]
[1772972431153,0.05995268,67267.0,67243.0,0.07435718]
[1772972431154,0.01801937,67262.0,67243.0,0.00152]
[1772972431350,0.01801937,67260.0,67244.0,0.00152]
[1772972431527,0.07433396,67264.0,67244.0,0.00152]
[1772972431722,0.07432291,67274.0,67244.0,0.00152]
[1772972431944,0.09234366,67273.0,67245.0,0.05880384]
[1772972432144,0.09234366,67273.0,67248.0,0.01807872]
[1772972432145,0.01801937,67272.0,67248.0,0.01807872]
[1772972432350,0.00051932,67275.0,67251.0,0.05880384]
[1772972432587,0.00051932,67275.0,67244.0,0.00152]
[1772972432588,0.07484155,67275.0,67254.0,0.01846265]
[1772972432783,0.07484155,67275.0,67255.0,0.06032384]
[1772972432784,0.01962841,67274.0,67255.0,0.06032384]
[1772972432954,0.01962841,67272.0,67255.0,0.00152]
[1772972433299,0.01962841,67269.0,67255.0,0.00152]
[1772972433495,0.01962841,67268.0,67255.0,0.00152]
[1772972433854,0.01962841,67268.0,67250.0,0.07434914]
[1772972433855,0.01962841,67268.0,67251.0,0.07434758]
[1772972434059,0.01962841,67268.0,67233.0,0.07436751]
[1772972434060,0.05995268,67265.0,67234.0,0.07436677]
[1772972434395,0.05995268,67261.0,67242.0,0.00152]
[1772972434624,0.05995268,67259.0,67242.0,0.00152]
[1772972434806,0.00152,67260.0,67241.0,0.08010916]
[1772972434807,0.01962841,67256.0,67241.0,0.00727]
[1772972435006,0.01962841,67252.0,67241.0,0.00727]
[1772972435228,0.00575,67268.0,67242.0,0.00152]
[1772972435414,0.08007974,67268.0,67245.0,0.01846265]
[1772972435592,0.08159974,67268.0,67247.0,0.01846265]
[1772972435829,0.08159974,67268.0,67248.0,0.01998265]
[1772972436033,0.08159974,67268.0,67229.0,0.07445176]
[1772972436034,0.05995268,67266.0,67231.0,0.05880384]
[1772972436245,0.05995268,67262.0,67232.0,0.01998265]
[1772972436370,0.0001193,67266.0,67229.0,8.02e-05]
[1772972436371,0.204972,67259.0,67233.0,0.00152]
[1772972436569,0.13127,67260.0,67234.0,0.00152]
[1772972436794,0.02267445,67256.0,67229.0,8.02e-05]
[1772972436992,0.01962841,67252.0,67234.0,0.00152]
[1772972437205,0.01962841,67247.0,67234.0,0.00152]
[1772972437423,0.02114841,67246.0,67234.0,0.00152]
[1772972438036,0.02114841,67246.0,67229.0,0.07445228]
[1772972438216,0.02114841,67246.0,67229.0,0.07445233]
[1772972438217,0.05995268,67243.0,67229.0,0.07445233]
[1772972438417,0.07435165,67249.0,67229.0,0.07445233]
[1772972438418,0.07435088,67249.0,67229.0,0.07445233]
[1772972438749,0.07434836,67251.0,67232.0,0.01846265]
[1772972438897,0.00152,67252.0,67236.0,0.01846265]
[1772972439096,0.02080867,67253.0,67236.0,0.01846265]
[1772972439297,0.00011925,67253.0,67238.0,0.01846265]
[1772972441073,0.00011925,67253.0,67230.0,0.07433619]
[1772972441074,0.06088241,67251.0,67230.0,0.07433619]
[1772972441280,0.06088241,67246.0,67230.0,0.07433619]
[1772972441421,0.01962841,67245.0,67230.0,0.05433619]
[1772972441621,0.01962841,67245.0,67207.0,0.01588862]
[1772972441622,0.07435275,67247.0,67219.0,0.0759033]
[1772972441884,0.07475236,67250.0,67219.0,0.0759033]
[1772972441885,0.0004,67250.0,67220.0,0.00152]
[1772972442089,0.0004,67250.0,67223.0,0.0580963]
[1772972442292,0.00152,67267.0,67233.0,0.0384]
[1772972442469,0.08008032,67268.0,67237.0,0.01846265]
[1772972442680,0.01962841,67265.0,67239.0,0.01846265]
[1772972442882,0.01962841,67264.0,67239.0,0.01846265]
[1772972443317,0.01962841,67262.0,67241.0,0.01846265]
[1772972443468,0.00152,67261.0,67241.0,0.01846265]
[1772972444119,0.07433507,67263.0,67242.0,0.0580963]
[1772972444350,0.02537841,67268.0,67242.0,0.0580963]
[1772972444351,1e-08,67268.0,67242.0,0.01846265]
[1772972444523,0.0090069,67280.0,67245.0,0.0580963]
[1772972444524,0.08332409,67280.0,67245.0,0.0580963]
[1772972444742,0.0090069,67280.0,67250.0,0.0004]
[1772972444876,0.06212355,67280.0,67253.0,0.0580963]
[1772972445085,0.06212355,67280.0,67250.0,0.0004]
[1772972445086,0.01962841,67305.0,67269.0,0.02384144]
[1772972445292,0.07549489,67300.0,67275.0,0.0580963]
[1772972445594,0.07549487,67300.0,67280.0,0.01846265]
[1772972445790,0.01962841,67297.0,67273.0,0.07432402]
[1772972445996,0.07549487,67300.0,67275.0,0.01846265]
[1772972446195,0.07589239,67300.0,67279.0,0.0580963]
[1772972446575,0.07589239,67300.0,67278.0,0.01846265]
[1772972446576,0.06088241,67298.0,67276.0,0.00152]
[1772972446853,0.01962841,67296.0,67275.0,0.001]
[1772972446997,0.06088241,67293.0,67275.0,0.001]
[1772972447195,0.07589239,67300.0,67276.0,0.07655895]
[1772972447447,0.07589239,67300.0,67280.0,0.01846265]
[1772972447605,0.07589239,67300.0,67277.0,0.0758396]
[1772972447810,0.00159752,67300.0,67280.0,0.0580963]
[1772972448069,0.00159752,67300.0,67277.0,0.0758396]
[1772972448070,0.07589221,67300.0,67281.0,0.01846265]
[1772972448494,0.07589221,67300.0,67283.0,0.01846265]
[1772972448696,0.07589221,67300.0,67284.0,0.01998265]
[1772972449338,0.07589221,67300.0,67275.0,0.0743196]
[1772972449339,0.01962841,67299.0,67271.0,0.07432623]
[1772972449534,0.01962841,67295.0,67273.0,0.07432339]
[1772972449755,0.01962841,67293.0,67273.0,0.07432339]
[1772972450102,0.07589221,67300.0,67278.0,0.01846265]
[1772972450103,0.00159752,67300.0,67278.0,0.01846265]
[1772972450277,0.00159752,67300.0,67281.0,0.0580963]
[1772972450278,0.07589252,67300.0,67281.0,0.0580963]
[1772972450453,0.07589252,67300.0,67282.0,0.01846265]
[1772972451007,1e-08,67300.0,67282.0,0.0580963]
[1772972451191,0.0939228,67300.0,67279.0,0.07807895]
[1772972451383,0.01962841,67299.0,67279.0,0.07807895]
[1772972451586,0.09392482,67298.0,67281.0,0.0002]
[1772972451799,0.07429641,67298.0,67281.0,0.01866265]
[1772972451935,0.06088241,67296.0,67281.0,0.0002]
[1772972452141,0.01962841,67295.0,67281.0,0.0002]
[1772972452544,0.01962841,67293.0,67281.0,0.0002]
[1772972452789,0.06088241,67294.0,67281.0,0.0002]
[1772972452790,0.06240241,67294.0,67281.0,0.0002]
[1772972453166,0.02114841,67293.0,67281.0,0.0002]
[1772972453367,0.01962841,67292.0,67280.0,0.07431629]
[1772972453573,0.01962841,67289.0,67280.0,0.07431629]
[1772972454379,0.07582396,67292.0,67280.0,0.07431629]
[1772972454580,0.07430396,67292.0,67280.0,0.07431629]
[1772972454783,0.09545237,67292.0,67280.0,0.07431629]
[1772972454983,0.01962841,67291.0,67280.0,0.07431629]
[1772972455188,0.07582396,67292.0,67280.0,0.07431629]
[1772972455375,0.07430396,67292.0,67280.0,0.07431629]
[1772972456013,0.07582175,67294.0,67280.0,0.07431629]
[1772972456198,0.00152,67294.0,67280.0,0.07431629]
[1772972456820,0.15481144,67295.0,67280.0,0.07431629]
[1772972457025,0.00152,67294.0,67280.0,0.07431629]
[1772972457224,0.15481144,67295.0,67280.0,0.07431629]
[1772972457225,0.07582062,67295.0,67280.0,0.07431629]
[1772972457426,0.07582062,67295.0,67280.0,0.09277894]
[1772972457663,0.0742953,67299.0,67280.0,0.09277894]
[1772972457820,0.00152,67296.0,67280.0,0.09277894]
[1772972458829,0.00152,67296.0,67279.0,0.00152]
[1772972459033,0.00152,67296.0,67214.0,0.00575]
[1772972459034,0.00152,67296.0,67271.0,0.00152]
[1772972459258,0.00152,67296.0,67272.0,0.00152]
[1772972459457,0.00152,67296.0,67269.0,0.07432808]
[1772972459458,0.06088241,67292.0,67271.0,0.00152]
[1772972459627,0.06088241,67287.0,67268.0,0.00575]
[1772972459845,0.01962841,67283.0,67268.0,0.0800793]
[1772972460048,0.06088241,67280.0,67273.0,0.0002]
[1772972460244,0.06088241,67276.0,67261.0,0.00152]
[1772972460495,0.00152,67275.0,67261.0,0.00152]
[1772972460749,0.25062001,67300.0,67269.0,0.0580963]
[1772972460921,0.01962841,67299.0,67272.0,0.01846265]
[1772972461254,0.01962841,67299.0,67275.0,0.0580963]
[1772972461390,0.01962841,67299.0,67278.0,0.0580963]
[1772972461391,0.01974759,67299.0,67278.0,0.0580963]
[1772972461592,0.00011918,67299.0,67280.0,0.09277894]
[1772972461782,0.00011918,67299.0,67281.0,0.01846265]
[1772972462362,0.00011918,67299.0,67282.0,0.01846265]
[1772972462497,0.01962841,67298.0,67280.0,0.07431629]
[1772972463435,0.01875928,67296.0,67280.0,0.07431629]
[1772972463649,0.25407357,67300.0,67280.0,0.07431629]
[1772972463650,0.07430193,67293.0,67281.0,0.07431518]
[1772972463844,0.05872758,67292.0,67280.0,0.00039751]
[1772972464042,0.01980735,67291.0,67280.0,0.07471362]
[1772972464428,0.00152,67294.0,67280.0,0.07471362]
[1772972465271,0.07429867,67296.0,67280.0,0.07471362]
[1772972465479,0.00152,67295.0,67280.0,0.00039751]
[1772972465678,0.09411038,67292.0,67280.0,0.07471334]
[1772972465886,0.07430303,67294.0,67280.0,0.07471334]
[1772972466173,0.07430303,67294.0,67280.0,0.09282495]
[1772972466333,0.07430303,67294.0,67281.0,0.01811161]
[1772972467415,0.07430303,67294.0,67280.0,0.07471334]
[1772972467598,0.01980735,67292.0,67280.0,0.00039751]
[1772972467795,0.01980735,67292.0,67281.0,0.00152]
[1772972467796,0.09411149,67291.0,67281.0,0.00152]
[1772972468702,0.01980735,67288.0,67280.0,0.0002]
[1772972468905,0.17915918,67290.0,67276.0,0.0743207]
[1772972469124,0.17955614,67290.0,67277.0,0.01811161]
[1772972469402,0.17955614,67290.0,67276.0,0.0743207]
[1772972469768,0.07430635,67289.0,67276.0,0.0743207]
[1772972470898,0.25386249,67290.0,67276.0,0.0743207]
[1772972470899,0.00152,67291.0,67277.0,0.01811161]
[1772972471099,0.09432451,67298.0,67277.0,0.01811161]
[1772972471100,0.07429751,67297.0,67277.0,0.01850857]
[1772972471299,0.00152,67296.0,67277.0,0.01850857]
[1772972471537,0.13716318,67297.0,67278.0,0.01811161]
[1772972471693,0.07451716,67298.0,67278.0,0.01811161]
[1772972471908,0.07451716,67298.0,67280.0,0.01811161]
[1772972471909,0.07429972,67296.0,67280.0,0.01811161]
[1772972472109,0.07429972,67296.0,67282.0,0.01811161]
[1772972472500,0.07581972,67296.0,67282.0,0.01811161]
[1772972472702,0.07581972,67296.0,67281.0,0.00152]
[1772972473166,0.07581972,67296.0,67281.0,0.01963161]
[1772972474131,0.07581972,67296.0,67282.0,0.07431408]
[1772972474928,0.07429972,67296.0,67282.0,0.09242569]
[1772972476505,0.01980735,67294.0,67282.0,0.07431408]
[1772972476674,0.08267302,67294.0,67282.0,0.07431408]
[1772972476900,0.06286567,67294.0,67282.0,0.07431408]
[1772972478060,0.06286567,67293.0,67282.0,0.07431408]
[1772972478379,0.07430303,67292.0,67282.0,0.07431408]
[1772972478881,0.07430303,67292.0,67281.0,0.07583465]
[1772972479765,0.01980735,67291.0,67281.0,0.00152]
[1772972480077,0.06286567,67290.0,67281.0,0.00152]
[1772972481046,0.07430635,67289.0,67281.0,0.00152]
[1772972482095,0.07430635,67289.0,67281.0,0.07583516]
[1772972482590,0.07430635,67289.0,67281.0,0.00152]
[1772972482793,0.07430635,67289.0,67277.0,0.00039696]
[1772972482948,0.06286567,67288.0,67275.0,0.00152]
[1772972483144,0.01980735,67286.0,67275.0,0.00152]
[1772972483343,0.06286567,67285.0,67275.0,0.00152]
[1772972483569,0.06286567,67285.0,67275.0,0.07584105]
[1772972483851,0.06286567,67285.0,67275.0,0.00152]
[1772972484072,0.06286567,67285.0,67275.0,0.0758417]
[1772972484499,0.00039696,67288.0,67275.0,0.0758417]
[1772972484704,0.06326263,67288.0,67275.0,0.00152]
[1772972484876,0.06326263,67288.0,67275.0,0.0758409]
[1772972485105,0.00152,67295.0,67278.0,0.01811161]
[1772972485464,0.00152,67295.0,67280.0,0.07752006]
[1772972485675,0.07451687,67298.0,67282.0,0.05940845]
[1772972485850,0.07451687,67298.0,67285.0,0.01811161]
[1772972487172,0.07451687,67298.0,67286.0,0.07430966]
[1772972487173,0.57451687,67298.0,67286.0,0.07430966]
[1772972487374,0.57451687,67298.0,67287.0,0.00152]
[1772972489296,0.57451687,67298.0,67288.0,0.07430745]
[1772972489442,0.57451687,67298.0,67281.0,0.07431518]
[1772972489665,0.06286567,67294.0,67273.0,0.17626684]
[1772972489880,0.06286567,67290.0,67276.0,0.00152]
[1772972490093,0.01980735,67288.0,67276.0,0.00152]
[1772972490326,0.57451711,67298.0,67280.0,0.01811161]
[1772972490547,0.01980735,67296.0,67279.0,0.07583739]
[1772972490781,0.01980735,67292.0,67278.0,0.00039696]
[1772972490998,0.5,67288.0,67278.0,0.00039696]
[1772972491183,0.07582855,67287.0,67278.0,0.00039696]
[1772972491390,0.07582855,67287.0,67275.0,0.00152]
[1772972491391,0.06286567,67286.0,67275.0,0.00152]
[1772972491588,0.06326263,67286.0,67275.0,0.00152]
[1772972492419,0.00152,67285.0,67275.0,0.00152]
[1772972493034,0.06286567,67284.0,67275.0,0.00152]
[1772972493448,0.07431297,67283.0,67275.0,0.00152]
[1772972493639,0.07431297,67283.0,67268.0,0.00575]
[1772972493870,0.01824344,67279.0,67260.0,0.00152]
[1772972494030,0.06286567,67276.0,67261.0,0.00152]
[1772972494433,0.0002258,67280.0,67262.0,0.05940845]
[1772972494635,0.50039696,67286.0,67262.0,0.05940845]
[1772972494841,0.50039696,67286.0,67276.0,0.05940845]
[1772972495026,0.50039696,67286.0,67277.0,0.01973482]
[1772972495236,0.48039696,67286.0,67277.0,0.01973482]
[1772972495462,0.46039696,67286.0,67278.0,0.07431849]
[1772972495666,0.07431076,67285.0,67275.0,0.0002]
[1772972495976,0.07431076,67285.0,67276.0,0.00152]
[1772972497310,0.01824344,67283.0,67269.0,0.00152]
[1772972497487,0.07583297,67283.0,67270.0,0.07432733]
[1772972498043,0.07583297,67283.0,67269.0,0.07584812]
[1772972498669,0.07583297,67283.0,67269.0,0.00152]
[1772972498870,0.01824344,67280.0,67269.0,0.00152]
[1772972499069,0.07583297,67283.0,67269.0,0.07432835]
[1772972499295,0.00152,67282.0,67269.0,0.13707869]
[1772972499598,0.07431518,67281.0,67271.0,0.07432623]
[1772972499897,0.07431518,67281.0,67270.0,0.01821482]
[1772972500197,0.07431518,67281.0,67270.0,0.09254189]
[1772972500395,0.07431518,67281.0,67269.0,0.00152]
[1772972501373,0.07431518,67281.0,67269.0,0.07584759]
[1772972501581,0.07583518,67281.0,67269.0,0.07584759]
[1772972501783,0.57583518,67281.0,67269.0,0.07584759]
[1772972502027,1.07583518,67281.0,67269.0,0.00152]
[1772972502400,0.01824344,67279.0,67259.0,0.07433868]
[1772972502586,0.05984831,67276.0,67262.0,0.00152]
[1772972502788,1.07431518,67281.0,67263.0,0.06123034]
[1772972503020,0.00152,67280.0,67263.0,0.06123034]
[1772972503231,0.06136831,67280.0,67263.0,0.06123034]
[1772972503387,0.07583739,67279.0,67263.0,0.13556479]
[1772972503829,0.05984831,67278.0,67263.0,0.07433445]
[1772972504011,0.00152,67277.0,67263.0,0.07433445]
[1772972504203,0.00152,67277.0,67269.0,0.0002]
[1772972504638,0.07431739,67279.0,67269.0,0.0002]
[1772972504856,0.07431739,67280.0,67269.0,0.0002]
[1772972505044,0.07453211,67284.0,67270.0,0.00152]
[1772972505445,0.07453211,67284.0,67269.0,0.0002]
[1772972505778,0.07453211,67284.0,67266.0,0.00152]
[1772972505908,0.07453211,67284.0,67264.0,0.07433395]
[1772972505909,0.07453211,67284.0,67264.0,0.00152]
[1772972506109,0.05984831,67281.0,67264.0,0.00152]
[1772972506323,0.01824344,67277.0,67262.0,0.0002]
[1772972506531,0.05984831,67274.0,67262.0,0.0002]
[1772972506727,0.05984831,67272.0,67262.0,0.0002]
[1772972507548,0.07432623,67271.0,67262.0,0.0002]
[1772972512203,0.05984831,67270.0,67248.0,0.06123034]
[1772972512360,0.05984831,67266.0,67256.0,0.00152]
[1772972512563,0.05984831,67265.0,67256.0,0.00152]
[1772972512855,0.05984831,67264.0,67255.0,0.0002]
[1772972513180,0.05984831,67263.0,67250.0,0.07554941]
[1772972513718,0.05984831,67263.0,67255.0,0.0002]
[1772972513921,0.05984831,67262.0,67255.0,0.0002]
[1772972514423,0.07433728,67261.0,67255.0,0.0002]
[1772972514880,0.07585728,67261.0,67255.0,5e-05]
[1772972515079,0.07433728,67261.0,67255.0,5e-05]
[1772972515827,0.07433192,67266.0,67255.0,5e-05]
[1772972516073,0.07432824,67270.0,67255.0,5e-05]
[1772972516382,0.07606662,67271.0,67259.0,0.01821482]
[1772972516583,0.07454662,67271.0,67259.0,0.07944516]
[1772972516783,0.07454662,67271.0,67257.0,0.0743417]
[1772972516784,0.00174001,67271.0,67261.0,0.01821482]
[1772972516988,0.00174001,67271.0,67263.0,0.06123034]
[1772972516989,0.00022001,67271.0,67263.0,0.06123034]
[1772972517600,0.00022001,67271.0,67263.0,0.06275034]
[1772972517805,0.00022001,67278.0,67263.0,0.06275034]
[1772972517986,0.00152,67277.0,67264.0,0.07944516]
[1772972518191,0.00152,67277.0,67265.0,0.07433286]
[1772972518700,0.00022001,67278.0,67265.0,0.07433286]
[1772972519249,0.00022001,67284.0,67267.0,0.01821482]
[1772972519387,0.00022001,67284.0,67268.0,0.06123034]
[1772972519588,0.00022001,67284.0,67270.0,0.01821482]
[1772972519799,0.00022001,67284.0,67271.0,0.06123034]
[1772972520414,0.07453205,67284.0,67272.0,0.07432512]
[1772972520595,0.1526238,67284.0,67272.0,0.07432512]
[1772972520797,0.1526238,67284.0,67256.0,0.0743417]
[1772972520798,0.05984831,67283.0,67256.0,0.0743417]
[1772972521015,0.05984831,67279.0,67257.0,0.12688216]
[1772972521219,0.05984831,67277.0,67257.0,0.20122298]
[1772972521384,0.00152,67278.0,67257.0,0.20122298]
[1772972521385,0.05984831,67275.0,67257.0,0.20274298]
[1772972521793,0.05984831,67274.0,67257.0,0.20274298]
[1772972522035,0.05984831,67274.0,67262.0,0.0002]
[1772972522457,0.05984831,67272.0,67262.0,0.0002]
[1772972522743,0.01899253,67270.0,67257.0,0.00152]
[1772972522885,0.05984831,67269.0,67258.0,0.10866734]
[1772972523671,0.07432402,67273.0,67256.0,0.00039696]